[Event "*** Titled Tuesday 3|2 Blitz"]
[Site "Chess.com"]
[Date "2016.09.06"]
[Round "8"]
[White "MattyDPerrine"]
[Black "Ksenia_Legenko"]
[Result "1-0"]
[WhiteElo "2230"]
[BlackElo "2033"]
[TimeControl "180+2"]
[EndTime "18:38:22 PDT"]
[Termination "MattyDPerrine won by resignation"]

1. d4 {[%clk 0:03:01.9]} 1... d5 {[%clk 0:03:00.3]} 2. c4 {[%clk 0:03:01.9]}
2... dxc4 {[%clk 0:03:01.2]} 3. Nf3 {[%clk 0:02:58.4]} 3... Nf6 {[%clk
0:03:02.2]} 4. e3 {[%clk 0:02:59.2]} 4... e6 {[%clk 0:03:03]} 5. Bxc4 {[%clk
0:03:00.4]} 5... a6 {[%clk 0:03:04.6]} 6. O-O {[%clk 0:02:59]} 6... b5 {[%clk
0:03:05]} 7. Bd3 {[%clk 0:02:59.3]} 7... Bb7 {[%clk 0:03:00.8]} 8. Qe2 {[%clk
0:02:58.6]} 8... Nbd7 {[%clk 0:02:46.4]} 9. Rd1 {[%clk 0:02:48]} 9... c5 {[%clk
0:02:42.2]} 10. dxc5 {[%clk 0:02:45.1]} 10... Bxc5 {[%clk 0:02:42.4]} 11. a4
{[%clk 0:02:46.1]} 11... b4 {[%clk 0:02:40.3]} 12. Nbd2 {[%clk 0:02:46.4]} 12...
O-O {[%clk 0:02:38.8]} 13. Nb3 {[%clk 0:02:45.3]} 13... Qe7 {[%clk 0:02:31.2]}
14. e4 {[%clk 0:02:43]} 14... e5 {[%clk 0:02:06.9]} 15. Nh4 {[%clk 0:02:05.1]}
15... Qe6 {[%clk 0:01:53.1]} 16. Bc4 {[%clk 0:01:56.4]} 16... Qb6 {[%clk
0:01:53.3]} 17. a5 {[%clk 0:01:45.9]} 17... Qa7 {[%clk 0:01:39.9]} 18. Bg5
{[%clk 0:00:51.7]} 18... h6 {[%clk 0:01:12.7]} 19. Nxc5 {[%clk 0:00:46.4]} 19...
Qxc5 {[%clk 0:00:51.5]} 20. Be3 {[%clk 0:00:44.6]} 20... Qc7 {[%clk 0:00:39.7]}
21. f3 {[%clk 0:00:39.1]} 21... Nc5 {[%clk 0:00:18.5]} 22. Qf2 {[%clk 0:00:21]}
22... Ne6 {[%clk 0:00:17.5]} 23. Rdc1 {[%clk 0:00:12]} 23... Qd7 {[%clk
0:00:11.8]} 24. Ng6 {[%clk 0:00:11.6]} 24... fxg6 {[%clk 0:00:12.2]} 25. Rd1
{[%clk 0:00:10.2]} 25... Qc8 {[%clk 0:00:11.2]} 26. Rac1 {[%clk 0:00:09.1]}
26... Qe8 {[%clk 0:00:12.3]} 27. Rd6 {[%clk 0:00:09.7]} 27... Bc8 {[%clk
0:00:12.6]} 28. Bb3 {[%clk 0:00:08.5]} 28... Kh7 {[%clk 0:00:13.1]} 29. Rxc8
{[%clk 0:00:09.2]} 29... Rxc8 {[%clk 0:00:13.5]} 30. Bxe6 {[%clk 0:00:07.5]}
30... Rc6 {[%clk 0:00:11.7]} 31. Bd7 {[%clk 0:00:08.3]} 31... Nxd7 {[%clk
0:00:08.7]} 32. Rxc6 {[%clk 0:00:09.5]} 32... Nb8 {[%clk 0:00:09.4]} 33. Rb6
{[%clk 0:00:08.5]} 33... Qd8 {[%clk 0:00:06.9]} 34. h3 {[%clk 0:00:06.6]} 34...
Rf7 {[%clk 0:00:07.4]} 35. Rxb4 {[%clk 0:00:03.9]} 35... Qxa5 {[%clk 0:00:08]}
36. Rxb8 {[%clk 0:00:04.7]} 36... Qa1+ {[%clk 0:00:08.8]} 37. Kh2 {[%clk
0:00:06.1]} 37... Qa5 {[%clk 0:00:09.6]} 38. Qd2 {[%clk 0:00:06.2]} 38... Qc7
{[%clk 0:00:09.3]} 39. Qd8 {[%clk 0:00:07.3]} 39... Qxd8 {[%clk 0:00:10.5]} 40.
Rxd8 {[%clk 0:00:09.2]} 40... Rb7 {[%clk 0:00:12]} 41. Rd2 {[%clk 0:00:09.5]}
41... a5 {[%clk 0:00:12.5]} 42. Kg1 {[%clk 0:00:09.8]} 42... a4 {[%clk
0:00:13.8]} 43. Kf2 {[%clk 0:00:10.6]} 43... Rb3 {[%clk 0:00:15]} 44. Rc2 {[%clk
0:00:11.6]} 44... a3 {[%clk 0:00:16]} 45. bxa3 {[%clk 0:00:12.3]} 45... Rxa3
{[%clk 0:00:17.3]} 46. Rc5 {[%clk 0:00:13.6]} 46... Ra2+ {[%clk 0:00:18.4]} 47.
Kg3 {[%clk 0:00:15.1]} 47... g5 {[%clk 0:00:19.7]} 48. Rxe5 {[%clk 0:00:15.9]}
48... Kg6 {[%clk 0:00:21.4]} 49. Re7 {[%clk 0:00:16.3]} 49... Kf6 {[%clk
0:00:21.9]} 50. Rb7 {[%clk 0:00:15.8]} 50... Ra4 {[%clk 0:00:22.5]} 51. Rd7
{[%clk 0:00:15.4]} 51... g6 {[%clk 0:00:20.3]} 52. Rd6+ {[%clk 0:00:14.8]} 52...
Kf7 {[%clk 0:00:21.1]} 53. Rd7+ {[%clk 0:00:15]} 53... Kf6 {[%clk 0:00:22.2]}
54. Rh7 {[%clk 0:00:16]} 54... h5 {[%clk 0:00:22.1]} 55. Rd7 {[%clk 0:00:16.9]}
55... Ra5 {[%clk 0:00:21.3]} 56. Rd6+ {[%clk 0:00:17.6]} 56... Kf7 {[%clk
0:00:22.1]} 57. Rd5 {[%clk 0:00:18.9]} 57... Ra3 {[%clk 0:00:20.2]} 58. Bxg5
{[%clk 0:00:19.8]} 58... Ra2 {[%clk 0:00:20.2]} 59. h4 {[%clk 0:00:19.5]} 59...
Ra3 {[%clk 0:00:20.2]} 60. Kf4 {[%clk 0:00:20.3]} 60... Ra2 {[%clk 0:00:20.9]}
61. g3 {[%clk 0:00:20.4]} 61... Ra3 {[%clk 0:00:21.5]} 62. g4 {[%clk 0:00:21]}
62... hxg4 {[%clk 0:00:21.9]} 63. fxg4 {[%clk 0:00:22.9]} 63... Ra1 {[%clk
0:00:23]} 64. h5 {[%clk 0:00:21.2]} 64... gxh5 {[%clk 0:00:23]} 65. gxh5 {[%clk
0:00:23.1]} 65... Ke6 {[%clk 0:00:23.8]} 66. Re5+ {[%clk 0:00:23]} 66... Kf7
{[%clk 0:00:24.5]} 67. Re7+ {[%clk 0:00:24.2]} 67... Kg8 {[%clk 0:00:25]} 68.
Kf5 {[%clk 0:00:24.4]} 68... Rh1 {[%clk 0:00:24.8]} 69. Kg6 {[%clk 0:00:25.1]}
69... Kf8 {[%clk 0:00:19.3]} 70. Rf7+ {[%clk 0:00:25]} 70... Kg8 {[%clk
0:00:19.7]} 71. h6 {[%clk 0:00:24.6]} 71... Rxh6+ {[%clk 0:00:06.4]} 72. Bxh6
{[%clk 0:00:26.5]} 1-0

[Event "*** Titled Tuesday 3|2 Blitz"]
[Site "Chess.com"]
[Date "2016.09.06"]
[Round "8"]
[White "AllStarShark"]
[Black "akinov-akinseye"]
[Result "1-0"]
[WhiteElo "2284"]
[BlackElo "2015"]
[TimeControl "180+2"]
[EndTime "18:39:10 PDT"]
[Termination "AllStarShark won on time"]

1. d4 {[%clk 0:03:02]} 1... d5 {[%clk 0:03:01]} 2. Bf4 {[%clk 0:03:02.6]} 2...
Nf6 {[%clk 0:03:00.9]} 3. e3 {[%clk 0:03:03.7]} 3... Bg4 {[%clk 0:03:01.9]} 4.
Nf3 {[%clk 0:03:00.4]} 4... e6 {[%clk 0:03:02.8]} 5. c4 {[%clk 0:03:00.9]} 5...
Bd6 {[%clk 0:02:59.3]} 6. Bxd6 {[%clk 0:02:58.2]} 6... cxd6 {[%clk 0:02:58.3]}
7. Nbd2 {[%clk 0:02:54.5]} 7... dxc4 {[%clk 0:02:58.1]} 8. Bxc4 {[%clk
0:02:53.5]} 8... d5 {[%clk 0:02:59.3]} 9. Bb5+ {[%clk 0:02:53.3]} 9... Nbd7
{[%clk 0:03:00.6]} 10. Qb3 {[%clk 0:02:50.3]} 10... O-O {[%clk 0:02:55.8]} 11.
O-O {[%clk 0:02:44.9]} 11... Bxf3 {[%clk 0:02:47]} 12. Nxf3 {[%clk 0:02:45.1]}
12... Ne4 {[%clk 0:02:48.2]} 13. Bd3 {[%clk 0:02:41.8]} 13... Ndf6 {[%clk
0:02:47.4]} 14. Rac1 {[%clk 0:02:29.6]} 14... Rb8 {[%clk 0:02:40.2]} 15. Bxe4
{[%clk 0:02:22.8]} 15... Nxe4 {[%clk 0:02:40.8]} 16. Rc2 {[%clk 0:02:17.5]}
16... Rc8 {[%clk 0:02:30.7]} 17. Rfc1 {[%clk 0:02:18.1]} 17... Rxc2 {[%clk
0:02:31.1]} 18. Rxc2 {[%clk 0:02:19.4]} 18... Qa5 {[%clk 0:02:27.6]} 19. g3
{[%clk 0:02:09.8]} 19... h6 {[%clk 0:02:24.9]} 20. h4 {[%clk 0:02:09.6]} 20...
b5 {[%clk 0:02:21.7]} 21. Kg2 {[%clk 0:02:08.2]} 21... b4 {[%clk 0:02:18.3]} 22.
Ne5 {[%clk 0:01:45.4]} 22... Qb5 {[%clk 0:02:14.4]} 23. a3 {[%clk 0:01:24.2]}
23... a5 {[%clk 0:02:14.4]} 24. axb4 {[%clk 0:01:22.2]} 24... axb4 {[%clk
0:02:15]} 25. Nd3 {[%clk 0:01:20.8]} 25... Rb8 {[%clk 0:02:13.4]} 26. Nc5 {[%clk
0:01:19.9]} 26... Nd6 {[%clk 0:02:08.2]} 27. Nd3 {[%clk 0:01:12.1]} 27... Nc4
{[%clk 0:02:04.7]} 28. Ne5 {[%clk 0:01:11.9]} 28... Rc8 {[%clk 0:01:59.6]} 29.
Qd3 {[%clk 0:01:03.8]} 29... f6 {[%clk 0:01:35.1]} 30. Ng6 {[%clk 0:00:56.4]}
30... Kf7 {[%clk 0:01:33.6]} 31. Nf4 {[%clk 0:00:40.1]} 31... Qd7 {[%clk
0:01:18.9]} 32. Qg6+ {[%clk 0:00:34.9]} 32... Kg8 {[%clk 0:01:19.8]} 33. Nh5
{[%clk 0:00:31.3]} 33... Qf7 {[%clk 0:01:19.9]} 34. Qxf7+ {[%clk 0:00:22.7]}
34... Kxf7 {[%clk 0:01:20.4]} 35. Kg1 {[%clk 0:00:21]} 35... e5 {[%clk
0:01:11.7]} 36. b3 {[%clk 0:00:21.1]} 36... Nd6 {[%clk 0:01:10.5]} 37. Rxc8
{[%clk 0:00:20.8]} 37... Nxc8 {[%clk 0:01:11.5]} 38. g4 {[%clk 0:00:21.2]} 38...
Nd6 {[%clk 0:01:07.6]} 39. Ng3 {[%clk 0:00:22.4]} 39... Nb5 {[%clk 0:01:05.4]}
40. Ne2 {[%clk 0:00:21.2]} 40... Nc3 {[%clk 0:01:03.3]} 41. Kf1 {[%clk
0:00:20.9]} 41... Nb5 {[%clk 0:00:52.4]} 42. Ke1 {[%clk 0:00:21]} 42... Ke6
{[%clk 0:00:53.3]} 43. Kd2 {[%clk 0:00:22.4]} 43... Nd6 {[%clk 0:00:52]} 44. Kd3
{[%clk 0:00:21.8]} 44... Ne4 {[%clk 0:00:50.8]} 45. f3 {[%clk 0:00:22.3]} 45...
Nd6 {[%clk 0:00:48.7]} 46. Ng3 {[%clk 0:00:19.6]} 46... g6 {[%clk 0:00:44.8]}
47. h5 {[%clk 0:00:20]} 47... Kf7 {[%clk 0:00:40.6]} 48. hxg6+ {[%clk
0:00:20.5]} 48... Kxg6 {[%clk 0:00:41.6]} 49. f4 {[%clk 0:00:19.6]} 49... e4+
{[%clk 0:00:41.5]} 50. Ke2 {[%clk 0:00:20.2]} 50... Nb5 {[%clk 0:00:41.4]} 51.
Nf1 {[%clk 0:00:20]} 51... h5 {[%clk 0:00:40]} 52. gxh5+ {[%clk 0:00:19.6]}
52... Kxh5 {[%clk 0:00:41.1]} 53. Ng3+ {[%clk 0:00:14.5]} 53... Kg4 {[%clk
0:00:42.1]} 54. Nh1 {[%clk 0:00:15.5]} 54... Kh3 {[%clk 0:00:37.8]} 55. Nf2+
{[%clk 0:00:16.4]} 55... Kg2 {[%clk 0:00:39]} 56. Ng4 {[%clk 0:00:16.9]} 56...
Nc3+ {[%clk 0:00:36.4]} 57. Kd2 {[%clk 0:00:17.6]} 57... f5 {[%clk 0:00:35.9]}
58. Nf6 {[%clk 0:00:17.4]} 58... Kf3 {[%clk 0:00:36.2]} 59. Ng8 {[%clk
0:00:15.3]} 59... Nb1+ {[%clk 0:00:34.5]} 60. Kc1 {[%clk 0:00:14.5]} 60... Kxe3
{[%clk 0:00:28.8]} 61. Kxb1 {[%clk 0:00:14.7]} 61... Kxd4 {[%clk 0:00:28.3]} 62.
Kc2 {[%clk 0:00:15.8]} 62... Ke3 {[%clk 0:00:28.8]} 63. Nf6 {[%clk 0:00:16.5]}
63... d4 {[%clk 0:00:28.7]} 64. Nd5+ {[%clk 0:00:15.6]} 64... Ke2 {[%clk
0:00:29.1]} 65. Nxb4 {[%clk 0:00:15.6]} 65... d3+ {[%clk 0:00:30.3]} 66. Kb2
{[%clk 0:00:10.5]} 66... d2 {[%clk 0:00:31.1]} 67. Nd5 {[%clk 0:00:11.3]} 67...
d1=Q {[%clk 0:00:19.5]} 68. Nc3+ {[%clk 0:00:12.3]} 68... Kd2 {[%clk 0:00:20.9]}
69. Nxd1 {[%clk 0:00:13.1]} 69... Kxd1 {[%clk 0:00:22.4]} 70. b4 {[%clk
0:00:15]} 70... e3 {[%clk 0:00:23.7]} 71. b5 {[%clk 0:00:16.9]} 71... e2 {[%clk
0:00:25.1]} 72. b6 {[%clk 0:00:17]} 72... e1=Q {[%clk 0:00:26.4]} 73. b7 {[%clk
0:00:18.9]} 73... Qb4+ {[%clk 0:00:27.8]} 74. Ka2 {[%clk 0:00:19.2]} 74... Qxb7
{[%clk 0:00:29.2]} 75. Ka3 {[%clk 0:00:20.4]} 75... Kc2 {[%clk 0:00:30.1]} 76.
Ka4 {[%clk 0:00:21.7]} 76... Kc3 {[%clk 0:00:31.3]} 77. Ka5 {[%clk 0:00:23.1]}
1-0

[Event "*** Titled Tuesday 3|2 Blitz"]
[Site "Chess.com"]
[Date "2016.09.06"]
[Round "9"]
[White "Alexander_Moskalenko"]
[Black "ShimanovAlex"]
[Result "1-0"]
[WhiteElo "2653"]
[BlackElo "2554"]
[TimeControl "180+2"]
[EndTime "18:47:56 PDT"]
[Termination "Alexander_Moskalenko won by resignation"]

1. b3 {[%clk 0:03:02]} 1... g6 {[%clk 0:02:58.6]} 2. Bb2 {[%clk 0:03:03.6]} 2...
Nf6 {[%clk 0:02:59.9]} 3. e4 {[%clk 0:03:03.2]} 3... Bg7 {[%clk 0:03:00.6]} 4.
Nf3 {[%clk 0:03:00.5]} 4... O-O {[%clk 0:03:01.2]} 5. Bd3 {[%clk 0:03:02]} 5...
d6 {[%clk 0:03:01.1]} 6. O-O {[%clk 0:03:03.1]} 6... c5 {[%clk 0:02:59.3]} 7.
Nc3 {[%clk 0:02:55.1]} 7... Nc6 {[%clk 0:03:00.1]} 8. Re1 {[%clk 0:02:55]} 8...
Bg4 {[%clk 0:03:00.2]} 9. h3 {[%clk 0:02:56.2]} 9... Bd7 {[%clk 0:02:58.2]} 10.
Bf1 {[%clk 0:02:55.5]} 10... e5 {[%clk 0:02:58.6]} 11. Bc4 {[%clk 0:02:54]}
11... Nd4 {[%clk 0:02:57.5]} 12. Bd5 {[%clk 0:02:51]} 12... Rb8 {[%clk
0:02:56.8]} 13. a4 {[%clk 0:02:50.2]} 13... b6 {[%clk 0:02:55.9]} 14. d3 {[%clk
0:02:51.4]} 14... a6 {[%clk 0:02:56.6]} 15. Bc1 {[%clk 0:02:43.4]} 15... b5
{[%clk 0:02:55.9]} 16. axb5 {[%clk 0:02:44.6]} 16... axb5 {[%clk 0:02:57.4]} 17.
Bg5 {[%clk 0:02:45.9]} 17... Qc8 {[%clk 0:02:48]} 18. Bxf6 {[%clk 0:02:45.3]}
18... Bxf6 {[%clk 0:02:49.9]} 19. Nd2 {[%clk 0:02:46.8]} 19... Kg7 {[%clk
0:02:49.8]} 20. Nf1 {[%clk 0:02:44.9]} 20... Bg5 {[%clk 0:02:49.7]} 21. Ra7
{[%clk 0:02:43.2]} 21... Nc6 {[%clk 0:02:45.2]} 22. Bxc6 {[%clk 0:02:41.9]}
22... Bxc6 {[%clk 0:02:45.9]} 23. Ne3 {[%clk 0:02:43.3]} 23... Bxe3 {[%clk
0:02:40.8]} 24. fxe3 {[%clk 0:02:44.8]} 24... b4 {[%clk 0:02:41.2]} 25. Ne2
{[%clk 0:02:34.9]} 25... Ra8 {[%clk 0:02:41.8]} 26. Qa1 {[%clk 0:02:34.8]} 26...
Rxa7 {[%clk 0:02:40.6]} 27. Qxa7 {[%clk 0:02:36.7]} 27... Qb7 {[%clk 0:02:41.5]}
28. Ra1 {[%clk 0:02:38]} 28... Ra8 {[%clk 0:02:40.2]} 29. Qxa8 {[%clk
0:02:36.7]} 29... Qxa8 {[%clk 0:02:40.7]} 30. Rxa8 {[%clk 0:02:38.6]} 30... Bxa8
{[%clk 0:02:42.2]} 31. Kf2 {[%clk 0:02:35.3]} 31... h5 {[%clk 0:02:41.6]} 32. h4
{[%clk 0:02:35.2]} 32... Kf6 {[%clk 0:02:42.5]} 33. Ng1 {[%clk 0:02:36.2]} 33...
Ke6 {[%clk 0:02:43.1]} 34. Nf3 {[%clk 0:02:37.4]} 34... f6 {[%clk 0:02:44.1]}
35. Nd2 {[%clk 0:02:33.4]} 35... f5 {[%clk 0:02:44.3]} 36. exf5+ {[%clk
0:02:29.5]} 36... gxf5 {[%clk 0:02:44.1]} 37. e4 {[%clk 0:02:20.7]} 37... d5
{[%clk 0:02:41]} 38. exd5+ {[%clk 0:01:52]} 38... Bxd5 {[%clk 0:02:42.9]} 39. g3
{[%clk 0:01:53.6]} 39... f4 {[%clk 0:02:43.2]} 40. gxf4 {[%clk 0:01:48.6]} 40...
exf4 {[%clk 0:02:43.7]} 41. Ne4 {[%clk 0:01:50]} 41... Kf5 {[%clk 0:02:34.7]}
42. Nxc5 {[%clk 0:01:47.3]} 42... Kg4 {[%clk 0:02:35.5]} 43. Na6 {[%clk
0:01:48.9]} 43... Kxh4 {[%clk 0:02:36]} 44. Nxb4 {[%clk 0:01:50.5]} 44... Ba8
{[%clk 0:02:36.4]} 45. d4 {[%clk 0:01:51.8]} 45... Be4 {[%clk 0:02:36.7]} 46. d5
{[%clk 0:01:52.1]} 46... Kg4 {[%clk 0:02:37.9]} 47. d6 {[%clk 0:01:53.1]} 47...
Bf5 {[%clk 0:02:35.3]} 48. Nd3 {[%clk 0:01:31.4]} 48... h4 {[%clk 0:02:23.8]}
49. Ne5+ {[%clk 0:01:32.3]} 49... Kg5 {[%clk 0:02:22.6]} 50. d7 {[%clk
0:01:33.8]} 50... Bxd7 {[%clk 0:02:23.5]} 51. Nxd7 {[%clk 0:01:35.7]} 51... h3
{[%clk 0:02:25]} 52. Ne5 {[%clk 0:01:35.9]} 1-0

[Event "*** Titled Tuesday 3|2 Blitz"]
[Site "Chess.com"]
[Date "2016.09.06"]
[Round "9"]
[White "theprosecution1"]
[Black "fidetrainerNET"]
[Result "1-0"]
[WhiteElo "2415"]
[BlackElo "2167"]
[TimeControl "180+2"]
[EndTime "18:48:07 PDT"]
[Termination "theprosecution1 won by resignation"]

1. e4 {[%clk 0:03:02]} 1... e5 {[%clk 0:02:55.5]} 2. Nf3 {[%clk 0:02:52.4]} 2...
Nc6 {[%clk 0:02:56.4]} 3. d4 {[%clk 0:02:52.4]} 3... exd4 {[%clk 0:02:55.3]} 4.
Nxd4 {[%clk 0:02:54.3]} 4... Bc5 {[%clk 0:02:56]} 5. Be3 {[%clk 0:02:53.7]} 5...
Qf6 {[%clk 0:02:56.2]} 6. Nb5 {[%clk 0:02:54.1]} 6... Bxe3 {[%clk 0:02:54.9]} 7.
fxe3 {[%clk 0:02:56]} 7... Kd8 {[%clk 0:02:51.9]} 8. N1c3 {[%clk 0:02:55.4]}
8... Nge7 {[%clk 0:02:50.9]} 9. Qd2 {[%clk 0:02:55.7]} 9... a6 {[%clk
0:02:51.1]} 10. Nd4 {[%clk 0:02:56.8]} 10... b5 {[%clk 0:02:39]} 11. O-O-O
{[%clk 0:02:56.7]} 11... Bb7 {[%clk 0:02:38.7]} 12. Be2 {[%clk 0:02:56.6]} 12...
d6 {[%clk 0:02:38.6]} 13. Rhf1 {[%clk 0:02:56.5]} 13... Qg6 {[%clk 0:02:38.3]}
14. Nf5 {[%clk 0:02:27.9]} 14... Re8 {[%clk 0:02:19.5]} 15. Nd5 {[%clk
0:01:39.4]} 15... Nxd5 {[%clk 0:01:53.1]} 16. Qxd5 {[%clk 0:01:41.3]} 16... Re5
{[%clk 0:01:51.7]} 17. Qb3 {[%clk 0:01:21.5]} 17... Na5 {[%clk 0:00:39.5]} 18.
Qa3 {[%clk 0:01:20.8]} 18... Nc4 {[%clk 0:00:38.2]} 19. Bxc4 {[%clk 0:01:20.4]}
19... bxc4 {[%clk 0:00:38.4]} 20. Nxd6 {[%clk 0:01:21.7]} 20... Bd5 {[%clk
0:00:27]} 21. Nxf7+ {[%clk 0:01:18.8]} 21... Qxf7 {[%clk 0:00:26]} 22. Rxf7
{[%clk 0:01:17.9]} 1-0

[Event "*** Titled Tuesday 3|2 Blitz"]
[Site "Chess.com"]
[Date "2016.09.06"]
[Round "9"]
[White "OparinGrigoriy"]
[Black "tigra"]
[Result "1-0"]
[WhiteElo "2617"]
[BlackElo "2451"]
[TimeControl "180+2"]
[EndTime "18:48:26 PDT"]
[Termination "OparinGrigoriy won by checkmate"]

1. e4 {[%clk 0:03:02]} 1... c5 {[%clk 0:03:00.7]} 2. Nf3 {[%clk 0:03:03.3]} 2...
g6 {[%clk 0:03:01.9]} 3. d4 {[%clk 0:03:04.4]} 3... cxd4 {[%clk 0:03:03.8]} 4.
Nxd4 {[%clk 0:03:06.3]} 4... Nc6 {[%clk 0:03:04.2]} 5. c4 {[%clk 0:03:07.6]}
5... d6 {[%clk 0:03:05.8]} 6. Nc3 {[%clk 0:03:08.9]} 6... Bg7 {[%clk 0:03:00.6]}
7. Be3 {[%clk 0:03:09.8]} 7... Qb6 {[%clk 0:03:00.7]} 8. Nb3 {[%clk 0:02:55.6]}
8... Bxc3+ {[%clk 0:03:00.4]} 9. bxc3 {[%clk 0:02:47.3]} 9... Qc7 {[%clk
0:03:02.3]} 10. Be2 {[%clk 0:02:40.1]} 10... b6 {[%clk 0:03:02.2]} 11. O-O
{[%clk 0:02:41.1]} 11... Ne5 {[%clk 0:02:59.4]} 12. Qd4 {[%clk 0:02:30.8]} 12...
Nf6 {[%clk 0:02:55]} 13. f4 {[%clk 0:02:31.6]} 13... Nc6 {[%clk 0:02:54.1]} 14.
Qd3 {[%clk 0:02:32.6]} 14... Ba6 {[%clk 0:02:54.5]} 15. Nd4 {[%clk 0:02:30.9]}
15... Rc8 {[%clk 0:02:38.9]} 16. Nb5 {[%clk 0:02:30.6]} 16... Bxb5 {[%clk
0:02:39.4]} 17. cxb5 {[%clk 0:02:31.8]} 17... Na5 {[%clk 0:02:41.1]} 18. Bd4
{[%clk 0:02:28.8]} 18... O-O {[%clk 0:02:39.8]} 19. e5 {[%clk 0:02:26.3]} 19...
Nd7 {[%clk 0:02:32.8]} 20. e6 {[%clk 0:02:15.2]} 20... fxe6 {[%clk 0:02:28.9]}
21. Bg4 {[%clk 0:02:16.5]} 21... Nc5 {[%clk 0:02:29.4]} 22. Qe3 {[%clk
0:02:00.3]} 22... Nab7 {[%clk 0:02:15]} 23. Rae1 {[%clk 0:02:00.5]} 23... Nd8
{[%clk 0:02:14]} 24. h4 {[%clk 0:01:54.2]} 24... Qd7 {[%clk 0:01:50.4]} 25. h5
{[%clk 0:01:52.8]} 25... Qe8 {[%clk 0:01:51.2]} 26. hxg6 {[%clk 0:01:46.7]}
26... Qxg6 {[%clk 0:01:51.2]} 27. Rf3 {[%clk 0:01:47.2]} 27... Ne4 {[%clk
0:01:29.9]} 28. Qxe4 {[%clk 0:00:41.8]} 28... Qxg4 {[%clk 0:01:30.2]} 29. Qd3
{[%clk 0:00:43.4]} 29... Qf5 {[%clk 0:01:28.2]} 30. Rg3+ {[%clk 0:00:44.3]}
30... Kf7 {[%clk 0:01:28.8]} 31. Qxf5+ {[%clk 0:00:46]} 31... exf5 {[%clk
0:01:27.2]} 32. Rg7+ {[%clk 0:00:47.5]} 32... Ke8 {[%clk 0:01:28.5]} 33. Rgxe7#
{[%clk 0:00:47.8]} 1-0

[Event "*** Titled Tuesday 3|2 Blitz"]
[Site "Chess.com"]
[Date "2016.09.06"]
[Round "9"]
[White "spirals5"]
[Black "DanielNaroditsky"]
[Result "0-1"]
[WhiteElo "2262"]
[BlackElo "2696"]
[TimeControl "180+2"]
[EndTime "18:48:34 PDT"]
[Termination "DanielNaroditsky won by resignation"]

1. e4 {[%clk 0:03:01.9]} 1... e6 {[%clk 0:02:59.6]} 2. Nf3 {[%clk 0:03:00.5]}
2... d5 {[%clk 0:03:01.5]} 3. exd5 {[%clk 0:03:01.1]} 3... exd5 {[%clk
0:03:02.2]} 4. d4 {[%clk 0:03:02.2]} 4... Bd6 {[%clk 0:03:02.6]} 5. Bd3 {[%clk
0:03:01.8]} 5... Nc6 {[%clk 0:03:00.6]} 6. h3 {[%clk 0:03:01.8]} 6... Nge7
{[%clk 0:02:59.6]} 7. O-O {[%clk 0:03:02.2]} 7... Be6 {[%clk 0:03:00.5]} 8. c3
{[%clk 0:03:03.1]} 8... Qd7 {[%clk 0:03:00.4]} 9. Re1 {[%clk 0:03:02.8]} 9...
O-O-O {[%clk 0:02:58.2]} 10. Ng5 {[%clk 0:03:02.7]} 10... Ng6 {[%clk 0:02:57.2]}
11. Nxe6 {[%clk 0:03:03.1]} 11... fxe6 {[%clk 0:02:56.7]} 12. Bxg6 {[%clk
0:02:31.8]} 12... hxg6 {[%clk 0:02:58.6]} 13. Qg4 {[%clk 0:02:31.9]} 13... e5
{[%clk 0:02:59]} 14. Qxd7+ {[%clk 0:02:31.3]} 14... Kxd7 {[%clk 0:03:00.9]} 15.
Be3 {[%clk 0:02:32.1]} 15... exd4 {[%clk 0:02:56.3]} 16. cxd4 {[%clk 0:02:28.1]}
16... Nb4 {[%clk 0:02:56.2]} 17. Re2 {[%clk 0:02:28.6]} 17... Rde8 {[%clk
0:02:56.3]} 18. Nc3 {[%clk 0:02:25.8]} 18... c6 {[%clk 0:02:56.9]} 19. a3 {[%clk
0:02:26.1]} 19... Nd3 {[%clk 0:02:57.7]} 20. Rd1 {[%clk 0:02:24.6]} 20... Nf4
{[%clk 0:02:58]} 21. Bxf4 {[%clk 0:02:24.9]} 21... Bxf4 {[%clk 0:02:59.9]} 22.
g3 {[%clk 0:02:17.2]} 22... Bg5 {[%clk 0:02:58.5]} 23. h4 {[%clk 0:02:15.8]}
23... Bf6 {[%clk 0:02:59]} 24. Kg2 {[%clk 0:02:03.2]} 24... Rxe2 {[%clk
0:02:58.2]} 25. Nxe2 {[%clk 0:02:03.5]} 25... Re8 {[%clk 0:03:00.1]} 26. Nf4
{[%clk 0:02:04.3]} 26... Re4 {[%clk 0:03:00.4]} 27. Nxg6 {[%clk 0:02:02.5]}
27... Rxd4 {[%clk 0:03:00.4]} 28. Rxd4 {[%clk 0:01:58.9]} 28... Bxd4 {[%clk
0:03:02.3]} 29. b3 {[%clk 0:01:59.9]} 29... Bb2 {[%clk 0:03:00.2]} 30. a4 {[%clk
0:02:00.4]} 30... Kd6 {[%clk 0:02:58]} 31. Kf3 {[%clk 0:01:59.9]} 31... Kc5
{[%clk 0:02:58.4]} 32. Ke2 {[%clk 0:02:00.2]} 32... Kb4 {[%clk 0:02:59.3]} 33.
f4 {[%clk 0:01:55.1]} 33... Kxb3 {[%clk 0:02:58.9]} 34. Ne5 {[%clk 0:01:55.1]}
34... c5 {[%clk 0:02:56.7]} 35. h5 {[%clk 0:01:49.1]} 35... c4 {[%clk
0:02:56.8]} 36. g4 {[%clk 0:01:40.6]} 36... a6 {[%clk 0:02:13.2]} 37. g5 {[%clk
0:01:35.6]} 37... Bxe5 {[%clk 0:02:13.4]} 38. fxe5 {[%clk 0:01:36.1]} 38... c3
{[%clk 0:02:15.3]} 39. e6 {[%clk 0:01:37.5]} 39... c2 {[%clk 0:02:17.2]} 40. e7
{[%clk 0:01:38.9]} 40... c1=Q {[%clk 0:02:17.5]} 41. e8=Q {[%clk 0:01:39.9]}
41... Qxg5 {[%clk 0:02:17.7]} 42. Qf7 {[%clk 0:01:23.1]} 42... b5 {[%clk
0:02:14.9]} 43. axb5 {[%clk 0:01:23.4]} 43... axb5 {[%clk 0:02:13.5]} 44. Kd1
{[%clk 0:01:17.8]} 44... b4 {[%clk 0:02:11.5]} 45. Qf3+ {[%clk 0:01:15.6]} 45...
Ka4 {[%clk 0:02:11]} 46. Qe2 {[%clk 0:01:12.3]} 46... Qg1+ {[%clk 0:02:07.7]}
47. Kd2 {[%clk 0:01:12.6]} 47... Qd4+ {[%clk 0:02:08.2]} 48. Ke1 {[%clk
0:01:12.8]} 48... Qe4 {[%clk 0:02:07.7]} 49. Qxe4 {[%clk 0:01:05.1]} 49... dxe4
{[%clk 0:02:09.6]} 50. h6 {[%clk 0:01:06.9]} 50... gxh6 {[%clk 0:02:08.7]} 0-1